{"text_format":"1","workbook":"xlsx","n_sheets":1,"sheets":["Y' Scale"],"not_rendered":{"charts":1,"images":0,"macros":1,"external_links":0,"defined_names":0,"comments":0,"pivot_tables":0},"unopened":[],"bounds":{"document_bytes":16777216,"sheet_cells":100000,"rows_first":2000,"rows_last":500,"rows_between":2000,"halvings":0,"cell_chars":16384,"cell_head_chars":4096},"cells_cut":0,"cells_raw":0,"read":"whole","date_system":"1900"}

{"sheet":"Y' Scale","index":0,"n_rows":20,"n_cols":18,"rows_kept":20,"cut":false,"hidden":false,"merged":[[16,17,16,19],[17,17,17,19],[18,17,18,19],[19,17,19,19],[1,17,3,19],[7,17,9,19],[13,17,13,19],[14,17,14,19],[15,17,15,19]]}
["X","Primary Y","Secondary Y"]
[1,{"$f":"RANDBETWEEN(-300,800)","v":789},{"$f":"RANDBETWEEN(-5000,20000)","v":9451}]
[2,-95,14599]
[3,155,4320]
[4,702,-4558]
[5,453,7993]
[6,-169,-520]
[7,390,10479]
[8,760,2591]
[9,161,7234]
[10,318,8545]
[11,64,-826]
[12,119,16223]
[13,49,2020,null,null,null,null,null,null,null,null,null,null,null,null,null,null,"Adjust Secondary Y Axis Scale"]
[14,-30,5760,null,null,null,null,null,null,null,null,null,null,null,null,null,null,"© Christos Samaras"]
[15,292,3249,null,null,null,null,null,null,null,null,null,null,null,null,null,null,"Mechanical Engineer"]
[null,null,null,null,null,null,null,null,null,null,null,null,null,null,null,null,null,"tel.: +306973513308"]
["Min",{"$f":"MIN(B2:B16)","v":-169},{"$f":"MIN(C2:C16)","v":-4558},null,null,null,null,null,null,null,null,null,null,null,null,null,null,"e-mail: xristos.samaras@gmail.com"]
["Max",{"$f":"MAX(B2:B16)","v":789},{"$f":"MAX(C2:C16)","v":16223},null,null,null,null,null,null,null,null,null,null,null,null,null,null,"site: http://www.myengineeringworld.net"]
[null,null,null,null,null,null,null,null,null,null,null,null,null,null,null,null,null,"Thessaloniki, Greece, 18/04/2015"]